[Event "*** SCC Grand Prix: Titled Tuesday Blitz"]
[Site "Chess.com"]
[Date "2020.07.21"]
[Round "5"]
[White "korkmaz16"]
[Black "TheCount"]
[Result "0-1"]
[WhiteElo "2342"]
[BlackElo "2650"]
[TimeControl "180+1"]
[EndTime "10:55:18 PDT"]
[Termination "TheCount won by resignation"]

1. e4 {[%clk 0:03:00.9]} 1... c5 {[%clk 0:02:59.8]} 2. Nf3 {[%clk 0:02:59.9]}
2... Nc6 {[%clk 0:03:00.2]} 3. d4 {[%clk 0:02:59.6]} 3... cxd4 {[%clk
0:03:01.1]} 4. Nxd4 {[%clk 0:02:59.8]} 4... Qb6 {[%clk 0:03:01.7]} 5. Nb3 {[%clk
0:02:50.7]} 5... Nf6 {[%clk 0:03:01.9]} 6. Nc3 {[%clk 0:02:50.1]} 6... e6 {[%clk
0:03:01.5]} 7. Be3 {[%clk 0:02:50.1]} 7... Qc7 {[%clk 0:03:00.9]} 8. Bd3 {[%clk
0:02:40.4]} 8... a6 {[%clk 0:02:57.5]} 9. O-O {[%clk 0:02:24]} 9... d6 {[%clk
0:02:51.4]} 10. f4 {[%clk 0:02:12]} 10... Be7 {[%clk 0:02:51.2]} 11. a3 {[%clk
0:01:52.7]} 11... O-O {[%clk 0:02:50.4]} 12. Qf3 {[%clk 0:01:52.2]} 12... Nd7
{[%clk 0:02:48.9]} 13. Kh1 {[%clk 0:01:47]} 13... b5 {[%clk 0:02:45.7]} 14. Rae1
{[%clk 0:01:21]} 14... Bb7 {[%clk 0:02:42.3]} 15. Qh3 {[%clk 0:01:20.5]} 15...
Rfe8 {[%clk 0:02:37]} 16. e5 {[%clk 0:01:19.5]} 16... g6 {[%clk 0:02:29.2]} 17.
Ne4 {[%clk 0:01:12.1]} 17... dxe5 {[%clk 0:02:22.6]} 18. Ng5 {[%clk 0:01:11.8]}
18... Nf8 {[%clk 0:02:12.4]} 19. Nc5 {[%clk 0:01:00.3]} 19... Bxg5 {[%clk
0:01:16.9]} 20. fxg5 {[%clk 0:00:57.5]} 20... Nd4 {[%clk 0:01:17.3]} 21. b4
{[%clk 0:00:44.2]} 21... Nf5 {[%clk 0:01:11]} 22. Bg1 {[%clk 0:00:41.8]} 22...
Bd5 {[%clk 0:01:03.1]} 23. Be4 {[%clk 0:00:41.5]} 23... a5 {[%clk 0:00:58.6]}
24. g4 {[%clk 0:00:41.1]} 24... Nd6 {[%clk 0:00:50.4]} 25. Bg2 {[%clk
0:00:29.8]} 25... axb4 {[%clk 0:00:49]} 26. axb4 {[%clk 0:00:29.3]} 26... Ra2
{[%clk 0:00:40.9]} 27. Re2 {[%clk 0:00:22.7]} 27... Bc4 {[%clk 0:00:30.5]} 28.
Rfe1 {[%clk 0:00:22.6]} 28... Bxe2 {[%clk 0:00:28.7]} 29. Rxe2 {[%clk
0:00:23.5]} 29... Qe7 {[%clk 0:00:26.9]} 30. Rxe5 {[%clk 0:00:23]} 30... Rxc2
{[%clk 0:00:25.4]} 31. Bc6 {[%clk 0:00:21.2]} 31... Rc8 {[%clk 0:00:23.5]} 32.
Be4 {[%clk 0:00:21.9]} 32... Rc1 {[%clk 0:00:20.8]} 33. Kg2 {[%clk 0:00:20.4]}
33... Nc4 {[%clk 0:00:20.4]} 34. Bd4 {[%clk 0:00:16.5]} 34... Qd6 {[%clk
0:00:15.2]} 35. Qe3 {[%clk 0:00:13.5]} 35... Nxe3+ {[%clk 0:00:14.6]} 36. Bxe3
{[%clk 0:00:13.6]} 36... Qxe5 {[%clk 0:00:14.2]} 37. Bxc1 {[%clk 0:00:13.7]}
37... Rxc5 {[%clk 0:00:14.4]} 38. Be3 {[%clk 0:00:14.5]} 38... Qxe4+ {[%clk
0:00:14.6]} 39. Kf2 {[%clk 0:00:14.4]} 39... Rc2+ {[%clk 0:00:15.2]} 0-1

[Event "*** SCC Grand Prix: Titled Tuesday Blitz"]
[Site "Chess.com"]
[Date "2020.07.21"]
[Round "5"]
[White "Iskusnyh"]
[Black "tandaleo"]
[Result "1-0"]
[WhiteElo "2488"]
[BlackElo "2321"]
[TimeControl "180+1"]
[EndTime "10:55:20 PDT"]
[Termination "Iskusnyh won on time"]

1. d4 {[%clk 0:03:00.9]} 1... d5 {[%clk 0:02:41.4]} 2. c4 {[%clk 0:03:00.6]}
2... e6 {[%clk 0:02:41.5]} 3. g3 {[%clk 0:03:00.5]} 3... c6 {[%clk 0:02:41.4]}
4. Nf3 {[%clk 0:02:57.8]} 4... Nf6 {[%clk 0:02:34.7]} 5. Bg2 {[%clk 0:02:55.6]}
5... Nbd7 {[%clk 0:02:31.8]} 6. Qc2 {[%clk 0:02:52.8]} 6... Bb4+ {[%clk
0:02:30.9]} 7. Nbd2 {[%clk 0:02:50.9]} 7... O-O {[%clk 0:02:28.2]} 8. O-O {[%clk
0:02:50.4]} 8... b6 {[%clk 0:02:15]} 9. e4 {[%clk 0:02:43.8]} 9... Bb7 {[%clk
0:02:11.8]} 10. e5 {[%clk 0:02:21.7]} 10... Ne8 {[%clk 0:02:03.8]} 11. cxd5
{[%clk 0:02:10]} 11... cxd5 {[%clk 0:02:01.4]} 12. h4 {[%clk 0:01:51.5]} 12...
Rc8 {[%clk 0:01:30]} 13. Qb3 {[%clk 0:01:50.3]} 13... Be7 {[%clk 0:01:29.3]} 14.
Re1 {[%clk 0:01:46.1]} 14... Qc7 {[%clk 0:01:22.9]} 15. Nf1 {[%clk 0:01:39.4]}
15... Qc2 {[%clk 0:01:16.8]} 16. Bd2 {[%clk 0:01:34.3]} 16... Qxb3 {[%clk
0:01:14.3]} 17. axb3 {[%clk 0:01:33.9]} 17... a5 {[%clk 0:01:14.4]} 18. b4
{[%clk 0:01:29.1]} 18... axb4 {[%clk 0:01:06.1]} 19. Ra7 {[%clk 0:01:27.3]}
19... Bc6 {[%clk 0:01:06.2]} 20. Rc1 {[%clk 0:01:14.5]} 20... Ra8 {[%clk
0:01:00.8]} 21. Rxa8 {[%clk 0:01:10]} 21... Bxa8 {[%clk 0:01:01.2]} 22. Ne3
{[%clk 0:01:05.5]} 22... Bb7 {[%clk 0:00:58.8]} 23. Bf1 {[%clk 0:01:03.7]} 23...
Nb8 {[%clk 0:00:30.1]} 24. Bb5 {[%clk 0:01:00.3]} 24... Na6 {[%clk 0:00:22.5]}
25. h5 {[%clk 0:00:44]} 25... Nec7 {[%clk 0:00:21.4]} 26. Bd3 {[%clk 0:00:44.1]}
26... Rc8 {[%clk 0:00:18.6]} 27. h6 {[%clk 0:00:42.4]} 27... g6 {[%clk
0:00:16.6]} 28. Ng4 {[%clk 0:00:42.4]} 28... Ne8 {[%clk 0:00:16.2]} 29. Ra1
{[%clk 0:00:41.6]} 29... Ra8 {[%clk 0:00:12.1]} 30. Bg5 {[%clk 0:00:38.7]} 30...
Bxg5 {[%clk 0:00:11.5]} 31. Nxg5 {[%clk 0:00:38]} 31... Nac7 {[%clk 0:00:11.2]}
32. Rc1 {[%clk 0:00:37.2]} 32... Ba6 {[%clk 0:00:08]} 33. Bxa6 {[%clk
0:00:33.4]} 33... Nxa6 {[%clk 0:00:06.9]} 34. Rc6 {[%clk 0:00:30]} 34... b5
{[%clk 0:00:03]} 35. Rb6 {[%clk 0:00:28.2]} 35... Nac7 {[%clk 0:00:03.1]} 36.
Nf6+ {[%clk 0:00:26.9]} 36... Nxf6 {[%clk 0:00:02.2]} 37. exf6 {[%clk
0:00:27.1]} 37... Rc8 {[%clk 0:00:02.2]} 38. Rc6 {[%clk 0:00:26]} 1-0

[Event "*** SCC Grand Prix: Titled Tuesday Blitz"]
[Site "Chess.com"]
[Date "2020.07.21"]
[Round "5"]
[White "exoticprincess"]
[Black "David_Paravyan"]
[Result "0-1"]
[WhiteElo "2838"]
[BlackElo "3006"]
[TimeControl "180+1"]
[EndTime "10:55:21 PDT"]
[Termination "David_Paravyan won by resignation"]

1. d4 {[%clk 0:03:00.9]} 1... Nf6 {[%clk 0:02:58.4]} 2. c4 {[%clk 0:03:01.2]}
2... e6 {[%clk 0:02:57.7]} 3. Nc3 {[%clk 0:03:01.5]} 3... Bb4 {[%clk 0:02:54.4]}
4. e3 {[%clk 0:03:01.8]} 4... O-O {[%clk 0:02:50.6]} 5. Ne2 {[%clk 0:03:02.1]}
5... c6 {[%clk 0:02:46.1]} 6. a3 {[%clk 0:03:01.8]} 6... Ba5 {[%clk 0:02:46.4]}
7. b4 {[%clk 0:03:00.8]} 7... Bc7 {[%clk 0:02:46.7]} 8. e4 {[%clk 0:03:01.5]}
8... d5 {[%clk 0:02:46.3]} 9. e5 {[%clk 0:03:01.7]} 9... Ne8 {[%clk 0:02:45.5]}
10. Ng3 {[%clk 0:02:44.3]} 10... f6 {[%clk 0:02:40.6]} 11. exf6 {[%clk
0:02:44.2]} 11... Qxf6 {[%clk 0:02:35.4]} 12. Be3 {[%clk 0:02:42.5]} 12... a5
{[%clk 0:02:33.8]} 13. Be2 {[%clk 0:02:34]} 13... Nd6 {[%clk 0:01:57.3]} 14. c5
{[%clk 0:02:25.8]} 14... Nf5 {[%clk 0:01:57.7]} 15. O-O {[%clk 0:02:21.1]} 15...
axb4 {[%clk 0:01:44.8]} 16. axb4 {[%clk 0:02:17.4]} 16... Rxa1 {[%clk
0:01:44.1]} 17. Qxa1 {[%clk 0:02:18.3]} 17... Nxd4 {[%clk 0:01:43.2]} 18. Bd3
{[%clk 0:02:09.7]} 18... Na6 {[%clk 0:00:39.1]} 19. Rd1 {[%clk 0:01:39.5]} 19...
e5 {[%clk 0:00:36.9]} 20. Qb1 {[%clk 0:01:28.6]} 20... g6 {[%clk 0:00:26.8]} 21.
h4 {[%clk 0:01:22.3]} 21... Qxh4 {[%clk 0:00:21.8]} 22. Bxg6 {[%clk 0:01:18.2]}
22... hxg6 {[%clk 0:00:14.3]} 23. Qxg6+ {[%clk 0:01:19.1]} 23... Kh8 {[%clk
0:00:14.9]} 24. Bg5 {[%clk 0:01:19.7]} 24... Qh7 {[%clk 0:00:08]} 25. Bf6+
{[%clk 0:01:19.5]} 25... Rxf6 {[%clk 0:00:08.3]} 26. Qxf6+ {[%clk 0:01:20.4]}
26... Qg7 {[%clk 0:00:09]} 27. Qh4+ {[%clk 0:01:20]} 27... Kg8 {[%clk
0:00:09.3]} 28. Rd3 {[%clk 0:01:14.5]} 28... Nxb4 {[%clk 0:00:09.2]} 29. Nh5
{[%clk 0:01:14]} 29... Nf5 {[%clk 0:00:05.7]} 30. Qxb4 {[%clk 0:01:10.8]} 30...
Qg5 {[%clk 0:00:04.5]} 31. Ng3 {[%clk 0:00:34.4]} 31... e4 {[%clk 0:00:05.1]}
32. Ncxe4 {[%clk 0:00:34.5]} 32... dxe4 {[%clk 0:00:04.7]} 33. Qxe4 {[%clk
0:00:35.4]} 33... Nxg3 {[%clk 0:00:04.5]} 34. Qe8+ {[%clk 0:00:35.4]} 34... Kg7
{[%clk 0:00:04.6]} 35. fxg3 {[%clk 0:00:30.9]} 35... Qxc5+ {[%clk 0:00:04.9]}
36. Re3 {[%clk 0:00:28.9]} 36... Bb6 {[%clk 0:00:04]} 37. Qxc8 {[%clk
0:00:21.1]} 37... Qxe3+ {[%clk 0:00:04.9]} 0-1

[Event "*** SCC Grand Prix: Titled Tuesday Blitz"]
[Site "Chess.com"]
[Date "2020.07.21"]
[Round "5"]
[White "Khazieva_Elza"]
[Black "AGW2016"]
[Result "0-1"]
[WhiteElo "2347"]
[BlackElo "2256"]
[TimeControl "180+1"]
[EndTime "10:55:22 PDT"]
[Termination "AGW2016 won by checkmate"]

1. e4 {[%clk 0:03:00.9]} 1... c5 {[%clk 0:02:57.7]} 2. Nf3 {[%clk 0:03:00.8]}
2... d6 {[%clk 0:02:57.4]} 3. d3 {[%clk 0:03:01.2]} 3... Nf6 {[%clk 0:02:53.6]}
4. g3 {[%clk 0:03:01.8]} 4... g6 {[%clk 0:02:53.6]} 5. Bg2 {[%clk 0:03:02.5]}
5... Bg7 {[%clk 0:02:54.2]} 6. O-O {[%clk 0:03:03.1]} 6... O-O {[%clk
0:02:53.6]} 7. Re1 {[%clk 0:03:03.7]} 7... Nc6 {[%clk 0:02:53.3]} 8. e5 {[%clk
0:03:04.2]} 8... dxe5 {[%clk 0:02:37.1]} 9. Nxe5 {[%clk 0:03:05.1]} 9... Nxe5
{[%clk 0:02:35.7]} 10. Rxe5 {[%clk 0:03:06]} 10... Nd7 {[%clk 0:02:21.5]} 11.
Re1 {[%clk 0:03:05.8]} 11... Rb8 {[%clk 0:02:12.3]} 12. a4 {[%clk 0:03:05.8]}
12... b6 {[%clk 0:02:12]} 13. a5 {[%clk 0:03:06.2]} 13... Bb7 {[%clk 0:02:12.7]}
14. Bxb7 {[%clk 0:02:47.9]} 14... Rxb7 {[%clk 0:02:11.7]} 15. Qf3 {[%clk
0:02:47.6]} 15... Rb8 {[%clk 0:02:08.9]} 16. axb6 {[%clk 0:02:46.9]} 16... axb6
{[%clk 0:02:08.5]} 17. Nc3 {[%clk 0:02:47.2]} 17... e6 {[%clk 0:01:59.5]} 18.
Bf4 {[%clk 0:02:45.6]} 18... Ra8 {[%clk 0:01:52.9]} 19. h4 {[%clk 0:02:20.9]}
19... h5 {[%clk 0:01:46.1]} 20. Bd6 {[%clk 0:01:43.2]} 20... Re8 {[%clk
0:01:44.4]} 21. Rab1 {[%clk 0:01:31.5]} 21... Nf6 {[%clk 0:01:40.2]} 22. Be5
{[%clk 0:01:28.4]} 22... Nd5 {[%clk 0:01:38.1]} 23. Bxg7 {[%clk 0:01:26.7]}
23... Kxg7 {[%clk 0:01:37.6]} 24. Ne4 {[%clk 0:01:17.3]} 24... Nb4 {[%clk
0:01:31.5]} 25. Ng5 {[%clk 0:01:14.8]} 25... Qd7 {[%clk 0:01:15.3]} 26. Rbc1
{[%clk 0:01:00.3]} 26... Ra2 {[%clk 0:01:06.7]} 27. Qf4 {[%clk 0:00:47.7]} 27...
Nd5 {[%clk 0:00:56.3]} 28. Qc4 {[%clk 0:00:16.9]} 28... Ra4 {[%clk 0:00:53.4]}
29. Qb3 {[%clk 0:00:13.8]} 29... Rb4 {[%clk 0:00:52.4]} 30. Qa2 {[%clk
0:00:10.8]} 30... Ra4 {[%clk 0:00:33.9]} 31. Qb1 {[%clk 0:00:10.7]} 31... Rea8
{[%clk 0:00:33.5]} 32. b3 {[%clk 0:00:10.5]} 32... Ra2 {[%clk 0:00:32.3]} 33.
Ne4 {[%clk 0:00:08.3]} 33... f5 {[%clk 0:00:32]} 34. c4 {[%clk 0:00:07.8]} 34...
fxe4 {[%clk 0:00:22.6]} 35. cxd5 {[%clk 0:00:07.6]} 35... exd5 {[%clk
0:00:23.2]} 36. dxe4 {[%clk 0:00:07.7]} 36... d4 {[%clk 0:00:23.8]} 37. e5
{[%clk 0:00:06]} 37... d3 {[%clk 0:00:23.3]} 38. Rcd1 {[%clk 0:00:05.2]} 38...
Qd4 {[%clk 0:00:22.4]} 39. Qxd3 {[%clk 0:00:03.3]} 39... Qxf2+ {[%clk
0:00:22.4]} 40. Kh1 {[%clk 0:00:03.4]} 40... Qh2# {[%clk 0:00:22.3]} 0-1

[Event "*** SCC Grand Prix: Titled Tuesday Blitz"]
[Site "Chess.com"]
[Date "2020.07.21"]
[Round "5"]
[White "Jojo_1608"]
[Black "LedakovAlexandr"]
[Result "1-0"]
[WhiteElo "2254"]
[BlackElo "2482"]
[TimeControl "180+1"]
[EndTime "10:55:23 PDT"]
[Termination "Jojo_1608 won on time"]

1. d4 {[%clk 0:03:00.9]} 1... Nc6 {[%clk 0:03:00.9]} 2. c4 {[%clk 0:02:58.9]}
2... e5 {[%clk 0:02:48.5]} 3. d5 {[%clk 0:02:58]} 3... Nce7 {[%clk 0:02:48.7]}
4. Nc3 {[%clk 0:02:57.2]} 4... Ng6 {[%clk 0:02:49.1]} 5. g3 {[%clk 0:02:55.9]}
5... Bc5 {[%clk 0:02:46.4]} 6. Bg2 {[%clk 0:02:55.1]} 6... Nf6 {[%clk
0:02:45.6]} 7. e4 {[%clk 0:02:48.2]} 7... d6 {[%clk 0:02:43.4]} 8. a3 {[%clk
0:02:46]} 8... a6 {[%clk 0:02:39.8]} 9. b4 {[%clk 0:02:43.7]} 9... Ba7 {[%clk
0:02:39.2]} 10. h3 {[%clk 0:02:43]} 10... h5 {[%clk 0:02:38.1]} 11. Nf3 {[%clk
0:02:29.6]} 11... h4 {[%clk 0:02:23]} 12. g4 {[%clk 0:02:26.3]} 12... Bd7 {[%clk
0:01:31.1]} 13. Bg5 {[%clk 0:02:24.9]} 13... Qe7 {[%clk 0:01:07.4]} 14. Qd2
{[%clk 0:02:10.8]} 14... Qf8 {[%clk 0:00:56.1]} 15. a4 {[%clk 0:02:05]} 15...
Nh7 {[%clk 0:00:51.7]} 16. Bxh4 {[%clk 0:02:01.9]} 16... Nxh4 {[%clk 0:00:48.6]}
17. Nxh4 {[%clk 0:02:02]} 17... Qe7 {[%clk 0:00:36.7]} 18. Nf5 {[%clk
0:01:59.3]} 18... Qf6 {[%clk 0:00:31.4]} 19. a5 {[%clk 0:01:55.7]} 19... Nf8
{[%clk 0:00:23.5]} 20. b5 {[%clk 0:01:48.8]} 20... Ng6 {[%clk 0:00:17.5]} 21.
Rb1 {[%clk 0:01:25.8]} 21... Nf4 {[%clk 0:00:15.6]} 22. Bf1 {[%clk 0:01:25.6]}
22... g6 {[%clk 0:00:15.1]} 23. Ng3 {[%clk 0:01:21.4]} 23... Rh4 {[%clk
0:00:14.8]} 24. b6 {[%clk 0:01:20.1]} 24... Bb8 {[%clk 0:00:09.1]} 25. bxc7
{[%clk 0:01:18.2]} 25... Bxc7 {[%clk 0:00:10]} 26. Nce2 {[%clk 0:01:16.4]} 26...
Rb8 {[%clk 0:00:05.7]} 27. Rh2 {[%clk 0:01:05.9]} 27... Qd8 {[%clk 0:00:05]} 28.
Ra1 {[%clk 0:01:03.5]} 28... Rc8 {[%clk 0:00:04.2]} 29. Nxf4 {[%clk 0:01:03]}
29... exf4 {[%clk 0:00:05.1]} 30. Qxf4 {[%clk 0:01:03.1]} 30... Bxa5+ {[%clk
0:00:04.8]} 31. Kd1 {[%clk 0:01:01]} 31... Bc3 {[%clk 0:00:05]} 32. Ra3 {[%clk
0:00:59.3]} 32... Be5 {[%clk 0:00:04.9]} 33. Qd2 {[%clk 0:00:52.7]} 33... Bxg4+
{[%clk 0:00:04.9]} 34. Be2 {[%clk 0:00:51.3]} 34... Bxe2+ {[%clk 0:00:05]} 35.
Kxe2 {[%clk 0:00:51.1]} 35... Rxc4 {[%clk 0:00:04.4]} 36. Re3 {[%clk 0:00:42.6]}
36... Bf4 {[%clk 0:00:04.5]} 37. Qa2 {[%clk 0:00:41.8]} 37... Bxe3 {[%clk
0:00:03.4]} 38. Qxc4 {[%clk 0:00:41.7]} 38... Bf4 {[%clk 0:00:03.2]} 39. Qa4+
{[%clk 0:00:40.6]} 39... Kf8 {[%clk 0:00:02.7]} 40. Rh1 {[%clk 0:00:40]} 40...
Qb6 {[%clk 0:00:03]} 41. Rc1 {[%clk 0:00:37]} 1-0

[Event "*** SCC Grand Prix: Titled Tuesday Blitz"]
[Site "Chess.com"]
[Date "2020.07.21"]
[Round "5"]
[White "Zkid"]
[Black "Roman_Ovetchkin"]
[Result "1-0"]
[WhiteElo "2798"]
[BlackElo "2602"]
[TimeControl "180+1"]
[EndTime "10:55:24 PDT"]
[Termination "Zkid won on time"]

1. e4 {[%clk 0:03:00.9]} 1... c6 {[%clk 0:02:47.4]} 2. d4 {[%clk 0:03:00.5]}
2... d5 {[%clk 0:02:47.8]} 3. exd5 {[%clk 0:03:01.1]} 3... cxd5 {[%clk
0:02:46.9]} 4. Bd3 {[%clk 0:03:01.3]} 4... Nc6 {[%clk 0:02:46.4]} 5. c3 {[%clk
0:03:01.9]} 5... Nf6 {[%clk 0:02:46.6]} 6. Bf4 {[%clk 0:03:01.8]} 6... Bg4
{[%clk 0:02:42.7]} 7. Qb3 {[%clk 0:03:01.7]} 7... e5 {[%clk 0:02:42.8]} 8. h3
{[%clk 0:02:59.6]} 8... exf4 {[%clk 0:02:30]} 9. hxg4 {[%clk 0:02:58.4]} 9...
Rb8 {[%clk 0:02:30.5]} 10. Qd1 {[%clk 0:02:31.2]} 10... Bd6 {[%clk 0:02:18.9]}
11. Qe2+ {[%clk 0:02:14.1]} 11... Qe7 {[%clk 0:02:16.4]} 12. Qxe7+ {[%clk
0:02:12.6]} 12... Kxe7 {[%clk 0:02:16.3]} 13. f3 {[%clk 0:02:08]} 13... h5
{[%clk 0:02:01.3]} 14. g5 {[%clk 0:02:03.9]} 14... Nd7 {[%clk 0:01:59.7]} 15.
Nd2 {[%clk 0:01:59.8]} 15... g6 {[%clk 0:01:57.3]} 16. a4 {[%clk 0:01:52.3]}
16... Nf8 {[%clk 0:01:56]} 17. Kf2 {[%clk 0:01:44.2]} 17... Ne6 {[%clk
0:01:55.1]} 18. Nh3 {[%clk 0:01:44.3]} 18... Kd7 {[%clk 0:01:54.6]} 19. b4
{[%clk 0:01:26.7]} 19... Be7 {[%clk 0:01:43.7]} 20. Nb3 {[%clk 0:01:23.5]} 20...
b6 {[%clk 0:01:35.5]} 21. a5 {[%clk 0:01:15.4]} 21... Bxg5 {[%clk 0:01:23.2]}
22. axb6 {[%clk 0:01:12.3]} 22... axb6 {[%clk 0:01:18.9]} 23. Nxg5 {[%clk
0:01:08.3]} 23... Nxg5 {[%clk 0:01:18.2]} 24. b5 {[%clk 0:01:07]} 24... Ne7
{[%clk 0:01:18]} 25. Ra7+ {[%clk 0:01:05.3]} 25... Kd6 {[%clk 0:01:17.4]} 26.
Rha1 {[%clk 0:00:53.9]} 26... Rhc8 {[%clk 0:01:09.6]} 27. R1a6 {[%clk
0:00:50.3]} 27... Ne6 {[%clk 0:00:54.6]} 28. Na5 {[%clk 0:00:45.9]} 28... Rc7
{[%clk 0:00:41.1]} 29. c4 {[%clk 0:00:37.9]} 29... Rxa7 {[%clk 0:00:34.6]} 30.
c5+ {[%clk 0:00:37.8]} 30... Nxc5 {[%clk 0:00:07.7]} 31. dxc5+ {[%clk
0:00:38.7]} 31... Kxc5 {[%clk 0:00:08]} 32. Rxa7 {[%clk 0:00:38]} 32... Nc8
{[%clk 0:00:08.6]} 33. Rc7+ {[%clk 0:00:35.7]} 33... Kd6 {[%clk 0:00:07.2]} 34.
Rc6+ {[%clk 0:00:35.6]} 34... Kd7 {[%clk 0:00:07.4]} 35. Nb3 {[%clk 0:00:35.9]}
35... Ne7 {[%clk 0:00:06.6]} 36. Rf6 {[%clk 0:00:36.1]} 36... Ke8 {[%clk
0:00:04.7]} 37. Nd4 {[%clk 0:00:32.7]} 37... Rb7 {[%clk 0:00:03.7]} 38. Nc6
{[%clk 0:00:29]} 38... Nc8 {[%clk 0:00:03.1]} 39. Rxf4 {[%clk 0:00:28]} 39...
Nd6 {[%clk 0:00:02.1]} 40. Rd4 {[%clk 0:00:26.6]} 40... Kd7 {[%clk 0:00:02]} 41.
Rxd5 {[%clk 0:00:26.7]} 41... Ke6 {[%clk 0:00:01.9]} 42. Re5+ {[%clk 0:00:25.9]}
42... Kf6 {[%clk 0:00:01.6]} 43. f4 {[%clk 0:00:25.9]} 1-0

[Event "*** SCC Grand Prix: Titled Tuesday Blitz"]
[Site "Chess.com"]
[Date "2020.07.21"]
[Round "5"]
[White "Revnov"]
[Black "Zenzo"]
[Result "1-0"]
[WhiteElo "2729"]
[BlackElo "2550"]
[TimeControl "180+1"]
[EndTime "10:55:25 PDT"]
[Termination "Revnov won by checkmate"]

1. e4 {[%clk 0:03:00.9]} 1... e5 {[%clk 0:03:00.1]} 2. Nf3 {[%clk 0:03:01]} 2...
Nc6 {[%clk 0:03:00.5]} 3. d4 {[%clk 0:03:01.3]} 3... exd4 {[%clk 0:03:00.6]} 4.
Nxd4 {[%clk 0:03:02.2]} 4... Bc5 {[%clk 0:03:00.7]} 5. Nb3 {[%clk 0:03:01.9]}
5... Bb6 {[%clk 0:03:00.1]} 6. Nc3 {[%clk 0:03:02.4]} 6... Nf6 {[%clk
0:03:00.3]} 7. Qe2 {[%clk 0:03:01.9]} 7... d6 {[%clk 0:02:59.5]} 8. Bg5 {[%clk
0:03:01.4]} 8... h6 {[%clk 0:02:55.8]} 9. Bh4 {[%clk 0:03:01.3]} 9... Nd4 {[%clk
0:02:31.8]} 10. Qd3 {[%clk 0:02:58.3]} 10... Nxb3 {[%clk 0:02:22.1]} 11. axb3
{[%clk 0:02:59.2]} 11... Be6 {[%clk 0:02:08.5]} 12. f3 {[%clk 0:02:54.7]} 12...
O-O {[%clk 0:01:59.8]} 13. O-O-O {[%clk 0:02:53]} 13... a5 {[%clk 0:01:48]} 14.
g4 {[%clk 0:02:52]} 14... Re8 {[%clk 0:01:30.3]} 15. Kb1 {[%clk 0:02:45.6]}
15... Bc5 {[%clk 0:01:29.5]} 16. Bg3 {[%clk 0:02:28.7]} 16... Nd7 {[%clk
0:01:26.4]} 17. f4 {[%clk 0:02:13.5]} 17... Bb4 {[%clk 0:01:25.4]} 18. f5 {[%clk
0:02:09.7]} 18... Nc5 {[%clk 0:01:25.5]} 19. Qf3 {[%clk 0:02:07.3]} 19... Bd7
{[%clk 0:01:23.4]} 20. Nd5 {[%clk 0:01:57.4]} 20... Nxe4 {[%clk 0:01:12.7]} 21.
c3 {[%clk 0:01:36.6]} 21... Bc5 {[%clk 0:01:07.6]} 22. Bd3 {[%clk 0:01:26.7]}
22... Ng5 {[%clk 0:00:53.5]} 23. Qg2 {[%clk 0:01:23.3]} 23... Bc6 {[%clk
0:00:47.2]} 24. h4 {[%clk 0:01:20.4]} 24... Nh7 {[%clk 0:00:47.3]} 25. g5 {[%clk
0:01:08.7]} 25... hxg5 {[%clk 0:00:43.4]} 26. Bc2 {[%clk 0:01:00.3]} 26... g4
{[%clk 0:00:41.4]} 27. h5 {[%clk 0:00:47.7]} 27... Re3 {[%clk 0:00:29.5]} 28.
Bh4 {[%clk 0:00:45.2]} 28... Qe8 {[%clk 0:00:26]} 29. Qxg4 {[%clk 0:00:42.8]}
29... Bxd5 {[%clk 0:00:19.3]} 30. Rxd5 {[%clk 0:00:43.7]} 30... a4 {[%clk
0:00:19.3]} 31. Rg1 {[%clk 0:00:41.7]} 31... Qf8 {[%clk 0:00:16.6]} 32. f6
{[%clk 0:00:35.2]} 32... axb3 {[%clk 0:00:16]} 33. Qxg7+ {[%clk 0:00:34.6]}
33... Qxg7 {[%clk 0:00:16.4]} 34. Rxg7+ {[%clk 0:00:34.5]} 34... Kf8 {[%clk
0:00:15.9]} 35. Rxh7 {[%clk 0:00:31.5]} 35... bxc2+ {[%clk 0:00:15.4]} 36. Kxc2
{[%clk 0:00:32.4]} 36... Re2+ {[%clk 0:00:10.7]} 37. Kd3 {[%clk 0:00:21.8]}
37... Rg2 {[%clk 0:00:11.6]} 38. Rg5 {[%clk 0:00:17.5]} 38... Rxg5 {[%clk
0:00:08.9]} 39. Bxg5 {[%clk 0:00:18.4]} 39... Kg8 {[%clk 0:00:09.6]} 40. Rg7+
{[%clk 0:00:18.8]} 40... Kf8 {[%clk 0:00:10.1]} 41. h6 {[%clk 0:00:18.8]} 41...
Ra1 {[%clk 0:00:08.5]} 42. h7 {[%clk 0:00:19]} 42... Rd1+ {[%clk 0:00:09.4]} 43.
Kc2 {[%clk 0:00:18.6]} 43... Rh1 {[%clk 0:00:10.3]} 44. Rg8# {[%clk 0:00:18.8]}
1-0

[Event "*** SCC Grand Prix: Titled Tuesday Blitz"]
[Site "Chess.com"]
[Date "2020.07.21"]
[Round "5"]
[White "ENajer77"]
[Black "anon569"]
[Result "1-0"]
[WhiteElo "2696"]
[BlackElo "2313"]
[TimeControl "180+1"]
[EndTime "10:55:25 PDT"]
[Termination "ENajer77 won on time"]

1. e4 {[%clk 0:03:00.9]} 1... c5 {[%clk 0:02:58.3]} 2. Nf3 {[%clk 0:03:00.2]}
2... d6 {[%clk 0:02:58.1]} 3. d4 {[%clk 0:02:58]} 3... cxd4 {[%clk 0:02:58.1]}
4. Nxd4 {[%clk 0:02:58.5]} 4... Nf6 {[%clk 0:02:58]} 5. Nc3 {[%clk 0:02:59.1]}
5... a6 {[%clk 0:02:57.9]} 6. h3 {[%clk 0:02:51.9]} 6... e6 {[%clk 0:02:55.2]}
7. g4 {[%clk 0:02:50.8]} 7... Be7 {[%clk 0:02:53.8]} 8. Be3 {[%clk 0:02:49.7]}
8... b5 {[%clk 0:02:48.7]} 9. g5 {[%clk 0:02:46.6]} 9... Nfd7 {[%clk 0:02:45.4]}
10. h4 {[%clk 0:02:47.1]} 10... Bb7 {[%clk 0:02:45.1]} 11. a3 {[%clk 0:02:45.7]}
11... Nb6 {[%clk 0:02:24]} 12. Qh5 {[%clk 0:02:30.1]} 12... g6 {[%clk
0:01:54.8]} 13. Qg4 {[%clk 0:02:22.2]} 13... N8d7 {[%clk 0:01:53.9]} 14. h5
{[%clk 0:02:06.4]} 14... Ne5 {[%clk 0:01:53.6]} 15. Qg3 {[%clk 0:02:06.4]} 15...
Rf8 {[%clk 0:01:35.3]} 16. hxg6 {[%clk 0:02:06]} 16... hxg6 {[%clk 0:01:34.6]}
17. O-O-O {[%clk 0:01:43.3]} 17... Rc8 {[%clk 0:00:58.9]} 18. Bf4 {[%clk
0:01:34.4]} 18... Qc7 {[%clk 0:00:25.6]} 19. Rh3 {[%clk 0:01:24.1]} 19... Nbc4
{[%clk 0:00:20.5]} 20. Kb1 {[%clk 0:01:00.7]} 20... Qb6 {[%clk 0:00:18.9]} 21.
Nb3 {[%clk 0:00:56.6]} 21... a5 {[%clk 0:00:17.3]} 22. Bc1 {[%clk 0:00:24.6]}
22... a4 {[%clk 0:00:09.5]} 23. Nd2 {[%clk 0:00:23.2]} 23... Bc6 {[%clk
0:00:07.6]} 24. f4 {[%clk 0:00:21.2]} 24... Nxd2+ {[%clk 0:00:07.4]} 25. Bxd2
{[%clk 0:00:21.1]} 25... Nc4 {[%clk 0:00:07.9]} 26. Bc1 {[%clk 0:00:20.3]} 26...
Bd7 {[%clk 0:00:04.8]} 27. Rh2 {[%clk 0:00:14]} 27... b4 {[%clk 0:00:04.5]} 28.
axb4 {[%clk 0:00:13.3]} 28... Qxb4 {[%clk 0:00:05]} 29. Na2 {[%clk 0:00:12.6]}
29... Qb6 {[%clk 0:00:04.9]} 30. Ka1 {[%clk 0:00:10.8]} 30... Rb8 {[%clk
0:00:02.8]} 31. Bxc4 {[%clk 0:00:09.4]} 1-0